Cogmind - Beta 9.1 @@@ ROGUE MODE // 2019.11.01 @ 11:09:10 Player: MrPainting Result: Self-destructed Performance ------------- Evolutions (3) 1500 Regions Visited (6) 1200 Robots Destroyed (58) 290 Value Destroyed (1813) 1813 Prototype IDs (2) 40 Alien Tech Used (0) 0 Bonus (300) 300 TOTAL SCORE: 5143 Bonus ------- Aligned with FarCom 300 Cogmind --------- Core Integrity 241/700 Matter 288/300 Energy 280/280 System Corruption 2% Temperature Cool (9) Location -7/Factory Parts ------- Power (1) Cooled Ion Engine Propulsion (4) Light Treads Utility (4) High-capacity Storage Unit High-capacity Storage Unit Improved ECM Suite Improved Utility Shielding Weapon (4) Gauss Rifle Inventory (20) Micro Nuclear Core Improved Heat Sink Coolant Injector Humpback Advanced Signal Interpreter Advanced Terrain Scanner Improved Terrain Scan Processor Energy Filter Transmission Jammer Layered Light Armor Plating Improved Shield Generator Hacking Suite Long-range Tractor Beam Phase Gun XL Autogun Array Remote Datajack Peak State ------------ Power Micro Nuclear Core Propulsion Light Treads Light Treads Utility High-capacity Storage Unit High-capacity Storage Unit Layered Light Armor Plating System Backup Module Weapon XL Autogun Array Inventory Light Nuclear Core Improved Heat Sink Coolant Injector Humpback Large Matter Pod Advanced Signal Interpreter Advanced Terrain Scanner Transmission Jammer Improved ECM Suite Improved Light Armor Plating Hacking Suite Long-range Tractor Beam Shock Rifle Phase Gun Remote Datajack [Rating: 56] Favorites ----------- Power Micro Nuclear Core Engine Light Ion Engine Power Core Micro Nuclear Core Propulsion Compact Wheel Treads Light Treads Wheel Compact Wheel Hover Unit Gravmag System Utility High-capacity Storage Unit Device Improved ECM Suite Storage High-capacity Storage Unit Processor Advanced Targeting Computer Protection Layered Light Armor Plating Weapon Shock Rifle Energy Gun Shock Rifle Ballistic Gun Gauss Rifle Launcher Grenade Launcher Special Weapon Mining Laser Slashing Weapon Katana Build | -11 -10 -10 -10 -9 -8 -7 ------- Run | Scr Mat Min Exi Min Mat Fac Slots Evolved 6 | . . . . . 4 2 Power . | . . . . . . . Propulsion 2 | . . . . . 2 . Utility 2 | . . . . . 2 . Weapon 2 | . . . . . . 2 Parts Attached 74 | 6 6 3 2 4 15 38 Power 8 | 1 . 1 . . 2 4 Engine 6 | 1 . 1 . . 2 2 Core 2 | . . . . . . 2 Reactor . | . . . . . . . Propulsion 12 | 2 . . . 2 1 7 Treads 4 | . . . . . . 4 Leg . | . . . . . . . Wheel 5 | 2 . . . 2 1 . Hover 3 | . . . . . . 3 Flight . | . . . . . . . Utility 25 | 1 3 . 2 . 6 13 Device 15 | . 1 . . . 4 10 Storage 6 | 1 2 . 1 . 2 . Processor 1 | . . . 1 . . . Hackware . | . . . . . . . Protection 3 | . . . . . . 3 Artifact . | . . . . . . . Weapon 29 | 2 3 2 . 2 6 14 Energy Gun 17 | 1 . 2 . 1 5 8 Energy Cannon . | . . . . . . . Ballistic Gun 7 | 1 . . . . . 6 Ballistic Cannon . | . . . . . . . Launcher 1 | . 1 . . . . . Special Weapon 2 | . 2 . . . . . Impact Weapon . | . . . . . . . Slashing Weapon 2 | . . . . 1 1 . Piercing Weapon . | . . . . . . . Special Melee Weapon . | . . . . . . . Unidentified Prototypes 2 | . . . . . . 2 Parts Lost 26 | . 3 . . 4 2 17 Power 3 | . . . . 1 1 1 Propulsion 8 | . . . . 2 . 6 Utility 2 | . . . . . . 2 Weapon 13 | . 3 . . 1 1 8 Highest Loss Streak 4 | . 2 . . 4 2 4 Average Slot Usage (%) 83 | . 94 86 95 77 85 78 Engine 6 | . 14 14 14 6 6 2 Core 2 | . . . . . . 4 Treads 5 | . . . . . . 10 Wheel 14 | . 28 28 28 14 25 6 Hover 1 | . . . . . . 2 Device 7 | . 9 2 . . 12 8 Storage 14 | . 14 14 14 14 14 15 Processor 3 | . . . 9 14 9 2 Protection 1 | . . . . . . 3 Energy Gun 16 | . 3 25 28 18 16 16 Ballistic Gun 3 | . 14 1 . . . 2 Launcher 1 | . 8 . . . . . Slashing Weapon 1 | . . . . 9 . 1 Naked Turns . | . . . . . . . Heaviest Build 89 | 9 40 47 47 47 78 89 Greatest Support 60 | 32 32 32 32 32 48 60 Greatest Overweight (x) 23 | . 1 1 1 12 1 23 Average Overweight (x) 1 | . . 1 1 2 . 1 Largest Inventory Capacity 20 | 6 12 12 12 12 20 20 Average Capacity 16 | 5 8 12 12 12 17 20 Most Carried 20 | 4 12 12 12 12 16 20 Average Carried 14 | 1 6 11 11 11 13 18 Final Capacity 20 | 6 12 12 12 12 20 20 Final Carried 20 | . 12 12 12 12 16 20 Class Distribution -------------------- 33% | Mutant 28% | Hauler-Mutant 21% | Scavenger-Skirmisher 11% | Scavenger-Mutant 4% | Hauler-Skirmisher Dominant Class ---------------- Mutant | -10/Materials Mutant | -10/Mines Mutant | -10/Exiles Mutant | -9/Mines Hauler-Mutant | -8/Materials Hauler-Mutant | -7/Factory Resources | -11 -10 -10 -10 -9 -8 -7 ----------- Run | Scr Mat Min Exi Min Mat Fac Matter Collected 1536 | 222 295 . 100 63 135 721 Remotely . | . . . . . . . Salvage Created 2245 | . 338 . . 219 376 1312 Parts 117 | . 26 . . 18 8 65 Haulers Intercepted 6 | . 2 . . . . 4 Recyclers Shooed 2 | . 1 . . . 1 . Parts Field Recycled . | . . . . . . . Retrieved Matter . | . . . . . . . Parts Self-Destructed . | . . . . . . . Prevented . | . . . . . . . Kills | -11 -10 -10 -10 -9 -8 -7 ------- Run | Scr Mat Min Exi Min Mat Fac Combat Hostiles Destroyed 40 | . 8 . . 7 5 20 Melee 4 | . . . . 2 . 2 Guns 26 | . . . . 5 5 16 AOE 10 | . 8 . . . . 2 Classes Destroyed 12 | . 7 . . . 1 4 Worker 2 | . 1 . . . . 1 Builder 2 | . 1 . . . 1 . Hauler 6 | . 2 . . . . 4 Recycler 5 | . 2 . . 2 1 . Operator 1 | . . . . . . 1 Watcher 2 | . 1 . . . . 1 Swarmer 13 | . 6 . . 7 . . Grunt 16 | . 2 . . . 3 11 Brawler 1 | . . . . . . 1 Sentry 3 | . . . . . 2 1 Hunter 2 | . . . . . . 2 Programmer 5 | . . . . . . 5 Best Kill Streak 7 | . 6 . . 4 3 7 Combat Bots Only 5 | . 3 . . 4 3 5 Max Kills in Single Turn 4 | . 4 . . 1 1 1 Gunslinging . | . . . . . . . Exploded 3 | . 3 . . . . 1 Melee 1 | . . . . 1 . 1 Uniques/NPCs Destroyed . | . . . . . . . Combat | -11 -10 -10 -10 -9 -8 -7 -------- Run | Scr Mat Min Exi Min Mat Fac Damage Taken 3090 | . 283 . . 299 305 2203 Core 622 | . 87 . . 64 12 459 Absorbed by Shields . | . . . . . . . Core Remaining (%) 78 | 100 . . . 39 97 . Volleys Fired 151 | . 19 . . 16 26 90 Largest 4 | . 2 . . 2 2 4 Hottest 226 | . 120 . . 126 130 226 Shots Fired 259 | . 20 . . 21 50 168 Gun 244 | . 5 . . 21 50 168 Cannon . | . . . . . . . Launcher 14 | . 14 . . . . . Special 1 | . 1 . . . . . Kinetic 65 | . 5 . . . . 60 Thermal 92 | . 1 . . 21 32 38 Explosive 14 | . 14 . . . . . Electromagnetic 88 | . . . . . 18 70 Robot Hit Streak 17 | . 4 . . 5 17 17 Robot Miss Streak 5 | . 3 . . 4 5 4 Penetration Max . | . . . . . . . Secondary Targets . | . . . . . . . Shots Hit Robots 191 | . 7 . . 20 44 120 Core Hits 118 | . 25 . . 9 34 50 Critical Hits . | . . . . . . . Critical Kills . | . . . . . . . Critical Parts Destroyed . | . . . . . . . Melee Attacks 9 | . . . . 5 . 4 Impact . | . . . . . . . Slashing 9 | . . . . 5 . 4 Piercing . | . . . . . . . Sneak Attacks . | . . . . . . . Combat Hostiles . | . . . . . . . Follow-up Attacks . | . . . . . . . Damage Inflicted 4820 | . 895 . . 383 535 3007 Guns 3495 | . 17 . . 266 531 2681 Cannons . | . . . . . . . Explosions 1072 | . 878 . . . . 194 Melee 249 | . . . . 117 . 132 Ramming 4 | . . . . . 4 . Kinetic 1552 | . 17 . . . . 1535 Thermal 1270 | . . . . 266 307 697 Explosive 828 | . 828 . . . . . Electromagnetic 917 | . 50 . . . 224 643 Impact . | . . . . . . . Slashing 249 | . . . . 117 . 132 Piercing . | . . . . . . . Highest Corruption 3 | . . . . . . 3 Average Corruption 2 | . . . . . . 2 Corruption Purged 2 | . . . . . . 2 Effects 20 | . . . . . . 20 Message Errors 6 | . . . . . . 6 Heat Flow Errors 5 | . . . . . . 5 Energy Discharges 1 | . . . . . . 1 Data Loss (minor) 2 | . . . . . . 2 Targeting Errors 5 | . . . . . . 5 Weapon Failures 1 | . . . . . . 1 Overload Shots . | . . . . . . . Overflow Damage 46 | . 8 . . . . 38 Projectiles . | . . . . . . . Explosions 24 | . 8 . . . . 16 Melee 22 | . . . . . . 22 Knockbacks . | . . . . . . . Impact . | . . . . . . . Kinetic . | . . . . . . . Secondary . | . . . . . . . Self-Inflicted Damage 125 | . 100 . . . 2 23 Shots 7 | . 6 . . . . 1 Rammed 1 | . . . . . 1 . Targets Rammed 1 | . . . . . 1 . Kicked . | . . . . . . . Crushed . | . . . . . . . Highest Temperature 481 | . 40 . . 345 81 481 Average Temperature 137 | . 19 . . 108 21 166 Received Heat Transfer 882 | . 93 . . . 135 654 Effects 20 | . . . . 3 . 17 Shutdowns 4 | . . . . . . 4 Energy Bleed 1 | . . . . . . 1 Interference 12 | . . . . 3 . 9 Matter Decay 1 | . . . . . . 1 Short Circuit 1 | . . . . . . 1 Damage (minor) 1 | . . . . . . 1 Siege Activations . | . . . . . . . Robots Corrupted . | . . . . . . . Combat Hostiles . | . . . . . . . Parts Fried 4 | . . . . . 3 1 Impact Corruptions . | . . . . . . . Robots Melted . | . . . . . . . Combat Hostiles . | . . . . . . . Parts Melted 8 | . . . . 2 . 6 Heat Transferred 2094 | . . . . 592 390 1112 Parts Sabotaged . | . . . . . . . Parts Stolen . | . . . . . . . Parts Stripped . | . . . . . . . Power Chain Reactions 4 | . . . . . . 4 Missiles Intercepted . | . . . . . . . Alert | -11 -10 -10 -10 -9 -8 -7 ------- Run | Scr Mat Min Exi Min Mat Fac Peak Influence 363 | . 292 64 . 145 221 363 Average Influence 147 | . 101 64 . 104 128 177 Maximum Alert Level 1 | . 1 . . . 1 1 Low Security (%) 67 | . . . . . . . Level 1 32 | . . . . . . . Level 2 . | . . . . . . . Level 3 . | . . . . . . . Level 4 . | . . . . . . . Level 5 . | . . . . . . . High Security . | . . . . . . . Max Security . | . . . . . . . Squads Dispatched 18 | . 3 1 . . . 14 Investigation 2 | . 1 1 . . . . Extermination 5 | . . . . . . 5 Reinforcement 6 | . 2 . . . . 4 Assault 1 | . . . . . . 1 Garrison 4 | . . . . . . 4 Intercept . | . . . . . . . Construction Impeded 1 | . . . . . . 1 Haulers Reinforced 1 | . . . . . . 1 Stealth | -11 -10 -10 -10 -9 -8 -7 --------- Run | Scr Mat Min Exi Min Mat Fac Distress Signals 3 | . 2 . . . . 1 Communications Jammed . | . . . . . . . Distress Signals . | . . . . . . . Times Spotted 77 | . 18 . . 7 7 45 Peak Tracking Total 8 | . 6 . . 4 3 8 Tactical Retreats 6 | . . . . . 1 5 Traps | -11 -10 -10 -10 -9 -8 -7 ------- Run | Scr Mat Min Exi Min Mat Fac Traps Triggered 1 | . 1 . . . . . Indirectly . | . . . . . . . Trap Hack Attempts . | . . . . . . . Triggered . | . . . . . . . Disarmed . | . . . . . . . Reprogrammed . | . . . . . . . Reused . | . . . . . . . Traps Extracted . | . . . . . . . Installed . | . . . . . . . Triggered . | . . . . . . . Machines | -11 -10 -10 -10 -9 -8 -7 ---------- Run | Scr Mat Min Exi Min Mat Fac Machines Disabled 14 | . 10 . . . . 4 Max in Single Turn 3 | . 3 . . . . 1 Garrison Access 1 | . . . . . . 1 Machines Sabotaged . | . . . . . . . Garrisons Compromised . | . . . . . . . Overloaded Fab Kills . | . . . . . . . Fab Network Shutdowns . | . . . . . . . Hacking | -11 -10 -10 -10 -9 -8 -7 --------- Run | Scr Mat Min Exi Min Mat Fac Machines Accessed 3 | . . 1 . . . 2 Terminals . | . . . . . . . Fabricators 2 | . . . . . . 2 Repair Stations . | . . . . . . . Recycling Units . | . . . . . . . Scanalyzers . | . . . . . . . Garrison Access . | . . . . . . . Total Hacks 3 | . . 1 . . . 2 Successful 3 | . . 1 . . . 2 Failed . | . . . . . . . Catastrophic . | . . . . . . . Database Lockouts . | . . . . . . . Manual 1 | . . . 1 . . . Terminals . | . . . . . . . Fabricators 2 | . . . . . . 2 Repair Stations . | . . . . . . . Recycling Units . | . . . . . . . Scanalyzers . | . . . . . . . Garrison Access . | . . . . . . . Terminal Hacks 1 | . . 1 . . . . Open Door 1 | . . 1 . . . . Fabricator Hacks 2 | . . . . . . 2 Build 2 | . . . . . . 2 Repair Station Hacks . | . . . . . . . Recycling Unit Hacks . | . . . . . . . Scanalyzer . | . . . . . . . Garrison Access Hacks . | . . . . . . . Unauthorized Hacks . | . . . . . . . Terminals . | . . . . . . . Fabricators . | . . . . . . . Repair Stations . | . . . . . . . Recycling Units . | . . . . . . . Scanalyzers . | . . . . . . . Garrison Access . | . . . . . . . Data Cores Recovered . | . . . . . . . Used . | . . . . . . . Hacking Detections 1 | . . . . . . 1 Full Trace Events . | . . . . . . . Feedback Events . | . . . . . . . Feedback Blocked . | . . . . . . . Robot Schematics Acquired . | . . . . . . . Robots Built . | . . . . . . . Matter . | . . . . . . . Time . | . . . . . . . Total Robot Build Rating . | . . . . . . . Part Schematics Acquired . | . . . . . . . Parts Built 4 | . . . . . . 4 Matter 402 | . . . . . . 402 Time 159 | . . . . . . 159 Total Part Build Rating 22 | . . . . . . 22 Parts Repaired . | . . . . . . . Time . | . . . . . . . Parts Recycled . | . . . . . . . Recycled Matter . | . . . . . . . Retrieved Matter . | . . . . . . . Retrieved Components . | . . . . . . . Parts Scanalyzed . | . . . . . . . Part Schematics Acquired . | . . . . . . . Parts Damaged . | . . . . . . . Bothacking | -11 -10 -10 -10 -9 -8 -7 ------------ Run | Scr Mat Min Exi Min Mat Fac Used RIF Installer . | . . . . . . . Robots Hacked . | . . . . . . . Non-combat . | . . . . . . . Combat . | . . . . . . . Robot Hacks Applied . | . . . . . . . Relay Couplers Released 3 | . . . . . . 3 Machine Destruction 3 | . . . . . . 3 Robots Rewired . | . . . . . . . Allies Hacked . | . . . . . . . Hacks Repelled . | . . . . . . . Allies | -11 -10 -10 -10 -9 -8 -7 -------- Run | Scr Mat Min Exi Min Mat Fac Total Allies . | . . . . . . . Largest Group . | . . . . . . . Highest-Rated Group . | . . . . . . . Highest-Rated Ally . | . . . . . . . Total Orders . | . . . . . . . Ally Attacks . | . . . . . . . Total Damage . | . . . . . . . Kills . | . . . . . . . Allies Corrupted . | . . . . . . . Allies Melted . | . . . . . . . Intel | -11 -10 -10 -10 -9 -8 -7 ------- Run | Scr Mat Min Exi Min Mat Fac Robot Analysis Total . | . . . . . . . Derelict Logs Recovered . | . . . . . . . Drone Launches . | . . . . . . . Drone Recoveries . | . . . . . . . Exploration | -11 -10 -10 -10 -9 -8 -7 ------------- Run | Scr Mat Min Exi Min Mat Fac Turns Passed 3644 | 56 493 136 400 169 420 1970 Spaces Moved 1808 | 47 412 97 353 49 257 593 Core 23 | 13 . . . 8 . 2 Treads 367 | . . . . . . 367 Legs . | . . . . . . . Wheels 1417 | 34 412 97 353 41 257 223 Hover 1 | . . . . . . 1 Flight . | . . . . . . . Fastest Speed 50 | 50 100 110 110 110 100 110 Average Speed 129 | 86 102 110 110 199 108 170 Slowest Speed 1200 | 100 110 110 110 650 110 1200 Overloaded Moves . | . . . . . . . Propulsion Burnouts . | . . . . . . . Robots Hopped . | . . . . . . . Cave-ins Triggered . | . . . . . . . Exploration Rate (%) 30 | 3 78 15 69 13 25 10 Regions Visited 6 Branch Regions 3 Pre-discovered Areas . | . . . . . . . Known Exits Taken . | . . . . . . . Unknown Exits Taken 6 | 1 1 1 1 1 1 . Scrap Searched . | . . . . . . . Spaces Dug . | . . . . . . . Terrain Destroyed 88 | . 79 . . . . 9 Melee . | . . . . . . . Projectile 4 | . . . . . . 4 AOE 84 | . 79 . . . . 5 Actions | -11 -10 -10 -10 -9 -8 -7 --------- Run | Scr Mat Min Exi Min Mat Fac Total 2879 | 61 461 127 370 90 348 1422 Wait 723 | 5 5 18 . 16 32 647 Move 1802 | 46 411 96 352 48 256 593 Hop . | . . . . . . . Pick Up 68 | 4 16 4 6 1 12 25 Fast Attach 22 | 2 2 2 . 2 2 12 Attach 26 | 4 1 . 1 1 6 13 Detach 7 | . . . . . . 7 Swap 26 | . 3 1 1 1 7 13 Drop 44 | . 4 6 10 . 6 18 Fire 151 | . 19 . . 16 26 90 Melee 9 | . . . . 5 . 4 Ram 1 | . . . . . 1 . Kick . | . . . . . . . Crush . | . . . . . . . Escape Stasis . | . . . . . . . Rewire . | . . . . . . . Trap . | . . . . . . . Miscellaneous . | . . . . . . . Route ------- -11/Scrapyard -10/Materials (discovered 3 exits: [*Mat x2] / *Min) -10/Mines -10/Exiles -9/Mines -8/Materials -7/Factory History --------- Turn | Location | Event 30 | -11/Scrapyard | Discovered new exit (range 15) 57 | -11/Scrapyard | Entered Materials 205 | -10/Materials | Discovered new exit (range 16) 268 | -10/Materials | Discovered new exit (range 15) 315 | -10/Materials | Build established: Mutant 449 | -10/Materials | Discovered new exit (range 10) 550 | -10/Materials | Entered Mines 557 | -10/Mines | Met a Derelict shopkeep closing up shop 681 | -10/Mines | Deemed a non-threat by the Exiles lab entrance 681 | -10/Mines | Discovered new exit (range 5) 686 | -10/Mines | Entered Exiles 713 | -10/Exiles | Met 8R-AWN 732 | -10/Exiles | Met EX-HEX 763 | -10/Exiles | Met EX-BIN 777 | -10/Exiles | Aligned with FarCom system 778 | -10/Exiles | Given EX-Vault access code 803 | -10/Exiles | Opened EX-Vault 810 | -10/Exiles | Found Prototype Ballistic Gun 842 | -10/Exiles | Warned to stay clear of 0b10 Research branches 1000 | -10/Exiles | Met EX-DEC 1074 | -10/Exiles | Discovered new exit (range 14) 1086 | -10/Exiles | Left Exiles lab with XL Autogun Array 1086 | -10/Exiles | Entered Mines 1155 | -9/Mines | Core integrity fell below 50% 1200 | -9/Mines | Lost 4 parts (1p2n1w) 1241 | -9/Mines | Discovered new exit (range 11) 1255 | -9/Mines | Entered Materials 1255 | -8/Materials | Evolved 4 slots: Propulsion x2, Utility x2 1666 | -8/Materials | Discovered new exit (range 5) 1675 | -8/Materials | Entered Factory 1675 | -7/Factory | Evolved 2 slots: Weapon x2 1693 | -7/Factory | Build established: Hauler-Mutant 1982 | -7/Factory | Fabricated Phase Gun (x2) 2019 | -7/Factory | Garrison activated, responded to threat 2157 | -7/Factory | Lost 4 parts (2n2w) 2367 | -7/Factory | Identified XL Autogun Array 2368 | -7/Factory | Garrison activated, responded to threat 2909 | -7/Factory | Build established: Scavenger-Skirmisher 3204 | -7/Factory | Fabricated Energy Filter (x2) 3484 | -7/Factory | Core integrity fell below 50% 3564 | -7/Factory | Lost 3 parts (1u2w) 3644 | -7/Factory | Lost 3 parts (2n1w) 3645 | -7/Factory | Self-destructed Last Messages --------------- 03571_ U-05 Engineer lays Concrete. 03571_ Acquired 10 matter. 03572_ U-05 Engineer lays Concrete. 03573_ K-01 Serf collects debris. 03573_ U-05 Engineer lays Concrete. 03573_ K-01 Serf cleans the Power Conduit. 03574_ U-05 Engineer lays Concrete. 03578_ IXJKC6KOWONU5RFRXCWO5 #COCZ0U&U 3IF 03583_ G-47 Trooper destroyed. 03600_ C-30 ARC bursts open, deploying its payload. 03600_ G-50 Soldier unfolds itself. 03600_ B-48 Gladiator unfolds itself. 03600_ G-47 Trooper unfolds itself. 03600_ I-36 Angel unfolds itself. 03602_ Shock Rifle destroyed. 03604_ Lgt. Treads destroyed. 03628_ 4/CDS3K3CXQRY=W/F07OCMH4FRM1FLDE#PYFK 03641_ Slug penetrates Manufacturing Mainframe. 03641_ Manufacturing Mainframe disabled. 03643_ Slug penetrates Manufacturing Mainframe. Map ----- +----------------------------------------------------+ | ???????????????????????????????????????" """" # | | ???????????????????????????????????????? """" # | | ??????????????????????????????????????"" """"?# | | ?????????????????????????????????????""" """"?# | | ?????????????????????????????????????""" """??# | | ??????????????????????????????????????"" """??# | | | ??????????????????????????????????????? ???# | | ?????????????????????????Y??????????????? ??# | | ??????????????????????????????#####+#######+### | | ????????????????????????????? | | ????????????????????????????? | | ???????????????????????????? | | ???????????????????????????? | | ???????????????????????????? h %* | | ???????????????????????????????#####[### #+###### | | ???????????????w????????????????????%# | | ???????????????????????????????????#!# | | ????????????????????????????????##?# # | | ??????????????????????????????+ # | | ??????????????????????????????# # | | ??????????????????????????????# # | | ??????????????????????????????+ # | | ??????????????????????????????###### # | | ?????????????????????????????????#?# # ! | | ?????????????????????########### #?#!+% !%! | | ?????????????????????# @ #*# !! | | ?????????????????????# b """ """" # # " | | ?????????????????????# "" """"?# ##/# # ## # | | ?????????????????????# g" "" """"?# %### | | ?????????????????????# gg"""" """" # #??####### | | ?????????????????????# ggg # #????????? | | ?????????????????????######+#####+## #????????? | | ????????????????????????# #??# #????????? | | ????????????????????????# #??# #????????? | | ????????????????????????# #??# #????????? | | ????????????????????????# i #??# #????????? | | ????????????????????????# #### ##???????? | | ????????????????????????# ? | | ????????????????????????# "" | | ????????????????????????# "" | | ????????????????????????# T" ? | | ????????????????????????# "" ? | | ????????????????????????# "" #? | | ?????????????????g????? ?? | | ????????????????????? ?? | | ???????????????????? #################??? | | ????????????????????##### #??????????????????? | | ????????????????????????#######??????????????????? | | ?????????????????????????????????????????????????? | | ?????????????????????????????????????????????????? | +----------------------------------------------------+ Best States ------------- Heat Dissipation 48 Coolant Potential 65 Energy Generation 18 Energy Capacity 280 Matter Stores 300 Matter Capacity 300 Sight Range 16 Terrain Scan Range 20 Terrain Scan Density 10 ECM Strength 2 Jamming Range 8 Armor Coverage 150 Utility Shielding 66 Evasion (%) 50 Targeting Accuracy 8 Recoil Reduction 3 Item Schematics ----------------- None Robot Schematics ------------------ None Fabricated ------------ Phase Gun | x2 | -7/Factory | Preloaded Energy Filter | x2 | -7/Factory | Preloaded Alien Tech Used ----------------- None Achievements -------------- None Challenges ------------ None Game ------ Seed LinkedAccelerationStorage Manual? 0 Play Time 00:39:13 Cumulative 81.2 hours Start 2019.11.01 @ 10:30:38 End 2019.11.01 @ 11:09:10 Sessions 1 Manual Loads 0 Difficulty Rogue Special Mode None Game No. 127 Rogue 127 Adventurer 0 Explorer 0 Win Type - Total 0 Types 0/0/0/0/0/0/0 Lore% 30 Gallery% 42 Achievement% 30 Wizard Run 0 Options --------- ASCII 0 Keyboard 0 Movement Mouse Keybinds 0 Fullscreen 1 Font 18/SmallcapsGlow Map View 76x50 Tactical HUD 1 Map Filters NONE Filters NONE Steam 1 RUN: 804da9e2-fca2-4373-b33e-2465b83bb592